bitfinex-derivatives/quotes_BTCF0:USTF0_20250811
["timestamp","ask_amount","ask_price","bid_price","bid_amount"]
[1754938268549,1.41802915,119860.0,119850.0,0.0844379]
[1754938268941,1.41802915,119860.0,119850.0,0.001]
[1754938269249,1.41802915,119860.0,119850.0,0.0844382]
[1754938269746,1.41802915,119860.0,119850.0,0.001]
[1754938270044,1.41802915,119860.0,119850.0,0.0844382]
[1754938271044,1.80101952,119860.0,119850.0,0.001]
[1754938271249,0.0834451,119840.0,119830.0,0.2503515]
[1754938271546,1.7111851,119840.0,119830.0,0.73728339]
[1754938272349,1.7111851,119840.0,119830.0,0.35429302]
[1754938272647,1.7111851,119840.0,119830.0,0.73728339]
[1754938273145,1.7111851,119840.0,119830.0,0.63334187]
[1754938273648,1.7121851,119840.0,119830.0,0.63334187]
[1754938274147,1.7121851,119840.0,119830.0,0.2503515]
[1754938275246,1.7121851,119840.0,119830.0,0.3302715]
[1754938275545,1.7121851,119840.0,119830.0,0.2503515]
[1754938275848,1.7121851,119840.0,119820.0,0.70673294]
[1754938275849,0.0834521,119830.0,119820.0,0.35431012]
[1754938276051,0.5605921,119830.0,119820.0,0.18739772]
[1754938276444,0.0834591,119820.0,119810.0,0.43790512]
[1754938276649,1.3498391,119820.0,119810.0,0.43790512]
[1754938277248,1.3498391,119820.0,119810.0,0.0001]
[1754938277550,1.3498391,119820.0,119810.0,0.0835661]
[1754938277752,1.3498391,119820.0,119810.0,0.18775117]
[1754938278947,1.3508391,119820.0,119810.0,0.18775117]
[1754938279653,1.3518391,119820.0,119810.0,0.18775117]
[1754938280753,1.3603357,119820.0,119810.0,0.18775117]
[1754938285055,1.3603357,119820.0,119810.0,0.10428507]
[1754938286858,1.3603357,119820.0,119810.0,0.0001]
[1754938288857,1.3603357,119820.0,119810.0,0.083566]
[1754938290148,1.3603357,119820.0,119810.0,0.0001]
[1754938290548,1.37864898,119820.0,119810.0,0.0001]
[1754938291457,1.37864898,119820.0,119810.0,0.0835661]
[1754938292164,1.37864898,119820.0,119810.0,0.0001]
[1754938293358,1.37864898,119820.0,119810.0,0.0835661]
[1754938293868,1.37864898,119820.0,119810.0,0.0001]
[1754938294761,1.37864898,119820.0,119810.0,0.0835661]
[1754938295063,1.37864898,119820.0,119810.0,0.0001]
[1754938295963,1.37864898,119820.0,119810.0,0.0835661]
[1754938296162,1.37864898,119820.0,119810.0,0.46679147]
[1754938296465,1.37876898,119820.0,119810.0,0.0835661]
[1754938296672,1.3519591,119820.0,119810.0,0.58686147]
[1754938299064,0.5625991,119820.0,119810.0,0.58686147]
[1754938299368,1.3519191,119820.0,119810.0,0.58686147]
[1754938301172,1.3519191,119820.0,119810.0,0.2036361]
[1754938301371,1.3519191,119820.0,119810.0,0.0933761]
[1754938301766,1.3519191,119820.0,119810.0,0.0001]
[1754938301970,1.73514447,119820.0,119810.0,0.0001]
[1754938304169,1.3519191,119820.0,119810.0,0.0001]
[1754938304567,1.73514447,119820.0,119810.0,0.0001]
[1754938304969,1.87394447,119820.0,119810.0,0.0001]
[1754938305173,1.4907191,119820.0,119810.0,0.083566]
[1754938305565,1.4907191,119820.0,119810.0,0.58686137]
[1754938308374,1.4907191,119820.0,119810.0,0.203636]
[1754938308573,1.4907191,119820.0,119810.0,0.133116]
[1754938308772,1.4907191,119820.0,119810.0,0.083566]
[1754938309974,1.4907191,119820.0,119810.0,0.0001]
[1754938310175,1.4907191,119820.0,119810.0,0.083566]
[1754938310371,0.5625991,119820.0,119810.0,0.58346137]
[1754938310576,1.3402491,119820.0,119810.0,0.58346137]
[1754938310775,1.3524791,119820.0,119810.0,0.58346137]
[1754938313081,1.3524791,119820.0,119810.0,0.131556]
[1754938313378,1.3524791,119820.0,119810.0,0.46679137]
[1754938313568,1.3524791,119820.0,119810.0,0.56799137]
[1754938313769,1.3524791,119820.0,119810.0,0.58346137]
[1754938314785,1.3524791,119820.0,119810.0,0.11677]
[1754938315082,1.3524791,119820.0,119810.0,0.49999537]
[1754938315279,1.3524791,119820.0,119810.0,0.04809]
[1754938315479,1.73570447,119820.0,119810.0,0.0001]
[1754938317583,1.3524791,119820.0,119810.0,0.0001]
[1754938317879,1.73570447,119820.0,119810.0,0.0001]
[1754938319580,1.3524791,119820.0,119810.0,0.083566]
[1754938319783,1.3524791,119820.0,119810.0,0.162096]
[1754938320369,1.3524791,119820.0,119810.0,0.0001]
[1754938320980,1.3524791,119820.0,119810.0,0.083566]
[1754938321282,1.3524791,119820.0,119810.0,0.38332537]
[1754938321683,1.3524791,119820.0,119810.0,0.0001]
[1754938323486,1.3524791,119820.0,119810.0,0.083566]
[1754938323777,1.3524791,119820.0,119810.0,0.147606]
[1754938323985,1.3524791,119820.0,119810.0,0.200236]
[1754938324186,1.3524791,119820.0,119810.0,0.58346137]
[1754938329786,1.3524791,119820.0,119810.0,0.200236]
[1754938332089,1.3524791,119820.0,119810.0,0.58346137]
[1754938342493,0.37891,119820.0,119810.0,0.58346137]
[1754938343393,0.01811,119820.0,119810.0,0.58346137]
[1754938344900,0.43787,119820.0,119810.0,0.58346137]
[1754938345201,0.521329,119820.0,119810.0,0.34773162]
[1754938345397,0.565079,119820.0,119810.0,0.73095699]
[1754938347304,0.48162,119820.0,119810.0,0.73095699]
[1754938347602,0.565079,119820.0,119810.0,0.58346137]
[1754938348202,0.48162,119820.0,119810.0,0.58346137]
[1754938349006,0.565079,119820.0,119810.0,0.58346137]
[1754938350205,0.002,119820.0,119810.0,0.58346137]
[1754938350406,0.002,119820.0,119810.0,1.11118937]
[1754938350698,0.0001,119830.0,119820.0,0.083459]
[1754938350903,1.1930251,119840.0,119830.0,0.0834521]
[1754938351105,1.1929251,119840.0,119830.0,0.66255485]
[1754938351411,0.8661251,119840.0,119830.0,0.73344485]
[1754938351598,0.8820351,119840.0,119830.0,0.73344485]
[1754938352097,0.9654802,119840.0,119830.0,0.73344485]
[1754938352304,0.1063851,119840.0,119830.0,0.73344485]
[1754938352498,0.1908302,119840.0,119830.0,0.35021948]
[1754938352699,0.2005702,119840.0,119830.0,0.58447747]
[1754938352895,0.2223502,119840.0,119830.0,0.58447747]
[1754938353304,0.5831502,119840.0,119830.0,0.58447747]
[1754938362809,0.4997051,119840.0,119830.0,0.58447747]
[1754938363010,0.1389051,119840.0,119830.0,0.58447747]
[1754938364108,0.4997051,119840.0,119830.0,0.58447747]
[1754938366012,0.4997051,119840.0,119830.0,0.59284818]
[1754938369711,0.0202851,119840.0,119830.0,1.76459355]
[1754938370219,0.0202851,119840.0,119830.0,2.12539355]
[1754938371018,0.0182851,119840.0,119830.0,1.74416818]
[1754938371518,0.0182851,119840.0,119830.0,1.38336818]
[1754938371714,1.5340251,119840.0,119830.0,1.38336818]
[1754938371920,1.5929951,119840.0,119830.0,1.38336818]
[1754938372122,1.5589951,119840.0,119830.0,1.38336818]
[1754938373034,1.5929951,119840.0,119830.0,1.38336818]
[1754938373218,1.6052251,119840.0,119830.0,1.38336818]
[1754938374719,1.9660251,119840.0,119830.0,1.38336818]
[1754938374920,1.6052251,119840.0,119830.0,1.38336818]
[1754938375823,0.02497,119840.0,119830.0,1.25049431]
[1754938376028,0.07471,119840.0,119830.0,1.63371968]
[1754938376321,1.61898,119840.0,119830.0,1.63371968]
[1754938376525,0.11898,119840.0,119830.0,1.63371968]
[1754938377124,1.61898,119840.0,119830.0,1.63371968]
[1754938378815,1.97978,119840.0,119830.0,1.63371968]
[1754938379018,1.61898,119840.0,119830.0,1.63371968]
[1754938379219,1.97978,119840.0,119830.0,1.63371968]
[1754938379726,1.61898,119840.0,119830.0,1.63371968]
[1754938381429,1.60675,119840.0,119830.0,1.63371968]
[1754938382829,0.0001,119850.0,119840.0,0.0834451]
[1754938383016,1.21757055,119860.0,119840.0,0.96916584]
[1754938383218,2.70807,119860.0,119850.0,0.53855357]
[1754938383427,2.7202,119860.0,119850.0,0.58593357]
[1754938383936,1.932,119860.0,119850.0,1.37409357]
[1754938385222,2.0154312,119860.0,119850.0,0.58593357]
[1754938385924,2.0154312,119860.0,119850.0,0.0834382]
[1754938386130,2.0154312,119860.0,119850.0,0.46666357]
[1754938386328,2.0164312,119860.0,119850.0,0.47612357]
[1754938386521,2.0164312,119860.0,119850.0,0.50926357]
[1754938386827,2.0164312,119860.0,119850.0,0.47612357]
[1754938387221,2.0164312,119860.0,119850.0,0.56207357]
[1754938387529,2.0164312,119860.0,119850.0,0.58593357]
[1754938388628,2.0164312,119860.0,119850.0,0.54718357]
[1754938388931,2.0164312,119860.0,119850.0,0.51404357]
[1754938391033,2.0164312,119860.0,119850.0,0.49824357]
[1754938392731,2.0164312,119860.0,119850.0,0.0834382]
[1754938393438,0.0834382,119850.0,119840.0,0.3337758]
[1754938393631,1.3510982,119850.0,119840.0,0.3337758]
[1754938394134,1.3510982,119850.0,119840.0,0.71700117]
[1754938394832,1.3510982,119850.0,119840.0,0.3337758]
[1754938395030,1.73432357,119850.0,119840.0,0.0834405]
[1754938396733,0.0834455,119840.0,119830.0,0.1668992]
[1754938397036,0.5632255,119840.0,119830.0,0.0834476]
[1754938397239,0.0834524,119830.0,119820.0,0.48279958]
[1754938397542,1.3510724,119830.0,119820.0,0.46668477]
[1754938397839,1.3510724,119830.0,119820.0,0.0834594]
[1754938398035,1.3510724,119830.0,119820.0,0.46668477]
[1754938398733,1.73429777,119830.0,119820.0,0.0834594]
[1754938398932,1.3510724,119830.0,119820.0,0.0834594]
[1754938399339,1.3510724,119830.0,119820.0,0.0844594]
[1754938399740,1.35962026,119830.0,119820.0,0.0844594]
[1754938399934,1.35962026,119830.0,119820.0,0.0854594]
[1754938400240,1.36062026,119830.0,119820.0,0.0844594]
[1754938401240,1.36062026,119830.0,119820.0,0.0834594]
[1754938402140,1.36062026,119830.0,119820.0,0.46668477]
[1754938402341,1.36062026,119830.0,119820.0,0.0834594]
[1754938402932,0.0834594,119820.0,119810.0,0.1670279]
[1754938403133,0.5624094,119820.0,119810.0,0.1670279]
[1754938404143,0.5624094,119820.0,119810.0,0.55025327]
[1754938404544,0.5624094,119820.0,119810.0,0.1670279]
[1754938404843,0.5624094,119820.0,119810.0,0.69922065]
[1754938405245,0.5624094,119820.0,119810.0,0.74267065]
[1754938405442,0.5624094,119820.0,119810.0,0.80252065]
[1754938405655,0.5634094,119820.0,119810.0,0.43553528]
[1754938405835,0.5634094,119820.0,119810.0,0.73529665]
[1754938406146,0.5634094,119820.0,119810.0,0.71089665]
[1754938406350,0.5634094,119820.0,119810.0,0.69710665]
[1754938406751,0.5634094,119820.0,119810.0,0.64683665]
[1754938406953,0.5634094,119820.0,119810.0,0.61575665]
[1754938407351,0.5634094,119820.0,119810.0,0.23253128]
[1754938407544,0.5634094,119820.0,119810.0,0.61575665]
[1754938408044,0.5634094,119820.0,119810.0,0.52402927]
[1754938409349,0.5634094,119820.0,119810.0,0.57008927]
[1754938409751,0.5634094,119820.0,119810.0,0.58632927]
[1754938416063,0.4928794,119820.0,119810.0,0.58632927]
[1754938416259,0.5511794,119820.0,119810.0,0.58632927]
[1754938416562,1.2487494,119820.0,119810.0,0.58632927]
[1754938416757,0.37741,119820.0,119810.0,0.58632927]
[1754938416957,0.3618,119820.0,119810.0,0.58632927]
[1754938418763,0.001,119820.0,119810.0,0.58632927]
[1754938419261,0.4784524,119830.0,119820.0,0.0811434]
[1754938419463,0.4783524,119830.0,119820.0,0.51168877]
[1754938419669,0.4783524,119830.0,119820.0,0.58390877]
[1754938420266,0.4442524,119830.0,119820.0,0.58390877]
[1754938422363,0.4442524,119830.0,119820.0,0.2006834]
[1754938422668,0.5624024,119830.0,119820.0,0.58390877]
[1754938423370,0.37641,119830.0,119820.0,0.58390877]
[1754938423578,0.3608,119830.0,119820.0,0.58390877]
[1754938424570,0.3608,119830.0,119820.0,0.2006834]
[1754938424777,0.3608,119830.0,119820.0,0.58390877]
[1754938425559,0.43471,119830.0,119820.0,0.58490877]
[1754938425970,0.43471,119830.0,119820.0,0.58590877]
[1754938426975,0.5501724,119830.0,119820.0,0.58590877]
[1754938427185,0.5624024,119830.0,119820.0,0.58590877]
[1754938428176,0.37641,119830.0,119820.0,0.58590877]
[1754938428370,0.3608,119830.0,119820.0,0.58590877]
[1754938429979,0.3847,119830.0,119820.0,0.58590877]
[1754938430777,0.40022,119830.0,119820.0,0.58590877]
[1754938431274,0.43284,119830.0,119820.0,0.58590877]
[1754938431574,0.46511,119830.0,119820.0,0.58590877]
[1754938431775,0.5607924,119830.0,119820.0,0.58590877]
[1754938433178,0.5607924,119830.0,119820.0,0.51368877]
[1754938433366,0.5607924,119830.0,119820.0,0.58406877]
[1754938433574,0.5607924,119830.0,119820.0,0.0831434]
[1754938433976,0.5607924,119830.0,119820.0,0.46636877]
[1754938434976,0.5607924,119830.0,119820.0,0.46536877]
[1754938435171,0.5627924,119830.0,119820.0,0.46436877]
[1754938435371,0.5627924,119830.0,119820.0,0.50591877]
[1754938435576,0.5627924,119830.0,119820.0,0.54408877]
[1754938436174,0.5627924,119830.0,119820.0,0.46436877]
[1754938437476,0.5627924,119830.0,119820.0,0.0811434]
[1754938437672,0.0834594,119820.0,119810.0,0.3339554]
[1754938437873,1.3483194,119820.0,119810.0,0.0835617]
[1754938438870,1.3493194,119820.0,119810.0,0.0835617]
[1754938440576,1.3493194,119820.0,119810.0,0.58408707]
[1754938441875,1.3493194,119820.0,119810.0,0.51370707]
[1754938442072,0.5495694,119820.0,119810.0,0.56998707]
[1754938442277,1.3370894,119820.0,119810.0,0.58408707]
[1754938442675,1.3493194,119820.0,119810.0,0.58408707]
[1754938444777,1.3483194,119820.0,119810.0,0.58408707]
[1754938445180,1.3244194,119820.0,119810.0,0.58408707]
[1754938445478,1.3483194,119820.0,119810.0,0.2008617]
[1754938445773,0.47734,119820.0,119810.0,0.58408707]
[1754938445978,0.37632,119820.0,119810.0,0.58408707]
[1754938447080,0.01552,119820.0,119810.0,0.58408707]
[1754938447277,0.3609,119830.0,119820.0,0.083459]
[1754938447481,0.4597724,119830.0,119820.0,0.58398437]
[1754938448281,0.5607924,119830.0,119820.0,0.58398437]
[1754938449181,0.43384,119830.0,119820.0,0.58398437]
[1754938449586,0.5172921,119830.0,119820.0,0.58398437]
[1754938450186,0.3618,119830.0,119820.0,0.58398437]
[1754938451284,0.3608,119830.0,119820.0,0.58398437]
[1754938451982,0.3847,119830.0,119820.0,0.58398437]
[1754938452179,0.4836721,119830.0,119820.0,0.58398437]
[1754938452374,0.5607921,119830.0,119820.0,0.58398437]
[1754938452579,0.47734,119830.0,119820.0,0.58398437]
[1754938453685,0.5607921,119830.0,119820.0,0.58398437]
[1754938453886,0.47734,119830.0,119820.0,0.58398437]
[1754938455385,0.560792,119830.0,119820.0,0.58398437]
[1754938455583,0.560792,119830.0,119820.0,0.200759]
[1754938455785,0.47734,119830.0,119820.0,0.58398437]
[1754938456483,0.5607921,119830.0,119820.0,0.58398437]
[1754938457483,0.47734,119830.0,119820.0,0.58398437]
[1754938457785,0.5607921,119830.0,119820.0,0.200759]
[1754938457985,0.5607921,119830.0,119820.0,0.58398437]
[1754938458691,0.47734,119830.0,119820.0,0.58398437]
[1754938460888,0.5607921,119830.0,119820.0,0.58398437]
[1754938462082,0.5607921,119830.0,119820.0,0.200759]
[1754938462289,0.5607921,119830.0,119820.0,0.58398437]
[1754938465099,0.1999921,119830.0,119820.0,0.58398437]
[1754938465291,0.5607921,119830.0,119820.0,0.58398437]
[1754938465793,0.47734,119830.0,119820.0,0.58398437]
[1754938466098,0.47734,119830.0,119820.0,0.200759]
[1754938466298,0.47734,119830.0,119820.0,0.58398437]
[1754938468598,0.5607922,119830.0,119820.0,0.58398437]
[1754938468800,0.5607922,119830.0,119820.0,0.200759]
[1754938468998,0.5607922,119830.0,119820.0,0.58398437]
[1754938469698,0.47734,119830.0,119820.0,0.58398437]
[1754938470198,0.46536,119830.0,119820.0,0.58398437]
[1754938470596,0.47759,119830.0,119820.0,0.58398437]
[1754938474707,0.5610422,119830.0,119820.0,0.200759]
[1754938475107,0.47759,119830.0,119820.0,0.58398437]
[1754938479818,0.5610422,119830.0,119820.0,0.58398437]
[1754938489119,0.47759,119830.0,119820.0,0.58398437]
[1754938489619,0.5610422,119830.0,119820.0,0.58398437]
[1754938490822,0.47759,119830.0,119820.0,0.58398437]
[1754938496325,0.47759,119830.0,119820.0,0.200759]
[1754938496630,0.5610422,119830.0,119820.0,0.58398437]
[1754938500226,0.5610422,119830.0,119820.0,0.200759]
[1754938500422,0.5610422,119830.0,119820.0,0.58398437]
[1754938500625,0.94426757,119830.0,119820.0,0.083459]
[1754938502124,0.5610422,119830.0,119820.0,0.083459]
[1754938503332,0.5610422,119830.0,119820.0,0.46668437]
[1754938508633,0.5610422,119830.0,119820.0,0.49945437]
[1754938508834,0.5610422,119830.0,119820.0,0.50904437]
[1754938509633,0.5610422,119830.0,119820.0,0.53047437]
[1754938509835,0.5610422,119830.0,119820.0,0.54523437]
[1754938510135,0.5610422,119830.0,119820.0,0.53047437]
[1754938510336,0.5610422,119830.0,119820.0,0.49770437]
[1754938512138,0.5610422,119830.0,119820.0,0.54523437]
[1754938512337,0.5610422,119830.0,119820.0,0.58416437]
[1754938512538,0.5610422,119830.0,119820.0,0.200939]
[1754938512739,0.5610422,119830.0,119820.0,0.58416437]
[1754938513839,0.5610422,119830.0,119820.0,0.200939]
[1754938514039,0.5610422,119830.0,119820.0,0.58416437]
[1754938516942,0.5620422,119830.0,119820.0,0.58416437]
[1754938517841,0.5620422,119830.0,119820.0,0.200939]
[1754938518141,0.5620422,119830.0,119820.0,0.58416437]
[1754938521138,0.5620422,119830.0,119820.0,0.200939]
[1754938521339,0.5620422,119830.0,119820.0,0.58416437]
[1754938522047,0.5620422,119830.0,119820.0,0.200939]
[1754938522347,0.5620422,119830.0,119820.0,0.63195848]
[1754938523448,0.99306168,119830.0,119820.0,0.200939]
[1754938523747,0.99306168,119830.0,119820.0,0.63195848]
[1754938526543,0.99306168,119830.0,119820.0,0.200939]
[1754938526749,0.99306168,119830.0,119820.0,0.63195868]
[1754938527638,0.99306168,119830.0,119820.0,0.51447868]
[1754938528560,0.99306168,119830.0,119820.0,0.0834592]
[1754938528854,0.99306168,119830.0,119820.0,0.51447868]
[1754938529552,0.99306168,119830.0,119820.0,0.57264868]
[1754938530052,0.99306168,119830.0,119820.0,0.63448868]
[1754938530251,0.5620422,119830.0,119820.0,0.63448868]
[1754938530451,0.99306168,119830.0,119820.0,0.63448868]
[1754938531449,0.5620422,119830.0,119820.0,0.63448868]
[1754938532944,0.4930422,119830.0,119820.0,1.06550816]
[1754938533144,1.2456522,119830.0,119820.0,1.06550816]
[1754938533345,0.4607722,119830.0,119820.0,1.06550816]
[1754938534053,0.3618,119830.0,119820.0,1.06550816]
[1754938534256,0.3618,119830.0,119820.0,0.56177614]
[1754938534657,0.4452522,119830.0,119820.0,0.56177614]
[1754938534957,0.5177622,119830.0,119820.0,0.56177614]
[1754938535251,0.5167622,119830.0,119820.0,0.56177614]
[1754938538850,0.4606022,119830.0,119820.0,0.56177614]
[1754938539253,0.4606022,119830.0,119820.0,0.58647614]
[1754938539453,0.4442522,119830.0,119820.0,0.58647614]
[1754938539961,0.3608,119830.0,119820.0,0.58647614]
[1754938540654,0.4442522,119830.0,119820.0,0.58647614]
[1754938541857,0.3608,119830.0,119820.0,0.58647614]
[1754938542956,0.3608,119830.0,119820.0,0.53024614]
[1754938543156,0.3608,119830.0,119820.0,0.58647614]
[1754938544059,0.3608,119830.0,119820.0,0.58747614]
[1754938544861,0.3608,119830.0,119820.0,0.58647614]
[1754938545754,0.3608,119830.0,119820.0,0.73544352]
[1754938546756,0.3608,119830.0,119820.0,1.11845046]
[1754938546955,0.3608,119830.0,119820.0,0.73544352]
[1754938547360,0.3608,119830.0,119820.0,0.2034692]
[1754938547559,0.3608,119830.0,119820.0,0.58647614]
[1754938548256,0.3608,119830.0,119820.0,0.73544352]
[1754938548450,0.3608,119830.0,119820.0,0.73644352]
[1754938548656,0.3609,119840.0,119820.0,0.90435722]
[1754938548854,0.39393,119840.0,119830.0,1.29916914]
[1754938549061,0.43279,119840.0,119830.0,1.32354914]
[1754938550555,0.37649,119840.0,119830.0,1.32354914]
[1754938551258,0.3608,119840.0,119830.0,1.70655608]
[1754938551971,0.3609,119850.0,119830.0,1.95790798]
[1754938552157,0.43289,119850.0,119840.0,0.97043908]
[1754938552357,0.43279,119850.0,119840.0,0.97043908]
[1754938552758,0.44502,119850.0,119840.0,0.97043908]
[1754938552959,0.3608,119850.0,119840.0,0.97043908]
[1754938553159,0.3608,119850.0,119840.0,0.97898188]
[1754938554760,0.44217,119850.0,119840.0,0.98098188]
[1754938555064,0.47552,119850.0,119840.0,0.98098188]
[1754938555961,0.47552,119850.0,119840.0,0.214968]
[1754938556166,0.47552,119850.0,119840.0,0.98098188]
[1754938556866,0.47552,119850.0,119840.0,0.214968]
[1754938557070,0.47552,119850.0,119840.0,0.98098188]
[1754938560573,0.5589583,119850.0,119840.0,1.37307214]
[1754938560774,0.5589583,119850.0,119840.0,0.46845214]
[1754938561071,0.43026,119850.0,119840.0,0.98063161]
[1754938562273,0.46329,119850.0,119840.0,0.98063161]
[1754938566975,0.47552,119850.0,119840.0,0.98063161]
[1754938568074,0.47552,119850.0,119840.0,0.21461773]
[1754938568269,0.47552,119850.0,119840.0,0.98063161]
[1754938570867,0.37649,119850.0,119840.0,0.98063161]
[1754938571066,0.43279,119850.0,119840.0,0.98063161]
[1754938571266,0.44502,119850.0,119840.0,0.98063161]
[1754938571466,0.44502,119850.0,119840.0,1.12959899]
[1754938572275,0.47552,119850.0,119840.0,1.12959899]
[1754938575675,0.47552,119850.0,119840.0,0.98063161]
[1754938576173,0.47552,119850.0,119840.0,1.12959899]
[1754938578285,0.47552,119850.0,119840.0,1.22502575]
[1754938582081,1.3416783,119850.0,119840.0,1.21683322]
[1754938582288,1.77239862,119850.0,119840.0,0.6651329]
[1754938582686,1.78085342,119850.0,119840.0,0.51616552]
[1754938582984,1.77239862,119850.0,119840.0,0.51616552]
[1754938583292,1.3416783,119850.0,119840.0,0.51616552]
[1754938583693,1.3436783,119850.0,119840.0,0.51616552]
[1754938584387,1.7044783,119850.0,119840.0,0.61743287]
[1754938584592,1.7128436,119850.0,119840.0,0.61743287]
[1754938585293,1.7128436,119850.0,119840.0,0.61543287]
[1754938587593,1.7128436,119850.0,119840.0,0.46646549]
[1754938587787,1.7128436,119850.0,119840.0,0.46642536]
[1754938589993,1.7128436,119850.0,119840.0,0.08340507]
[1754938590897,1.7128436,119850.0,119840.0,0.46642536]
[1754938591097,1.7128436,119850.0,119840.0,0.08340507]
[1754938592795,1.7128436,119850.0,119840.0,0.46642536]
[1754938594800,1.7128436,119850.0,119840.0,0.50809536]
[1754938594996,1.7128436,119850.0,119840.0,0.52913536]
[1754938595197,1.7128436,119850.0,119840.0,0.56625536]
[1754938595497,1.7044783,119850.0,119840.0,0.58257536]
[1754938595999,1.7044783,119850.0,119840.0,0.96559565]
[1754938597199,1.7034783,119850.0,119840.0,0.96559565]
[1754938597401,1.7034783,119850.0,119840.0,0.58257536]
[1754938598094,1.7034783,119850.0,119840.0,0.96559565]
[1754938598697,1.7034783,119850.0,119840.0,1.11456303]
[1754938599097,1.62004,119850.0,119840.0,1.11456303]
[1754938599398,0.7226,119850.0,119840.0,1.11456303]
[1754938599599,0.7226,119850.0,119840.0,0.96559565]
[1754938599600,0.3618,119850.0,119840.0,0.96559565]
[1754938600304,0.3618,119850.0,119840.0,1.11465473]
[1754938600500,0.3608,119850.0,119840.0,1.11665473]
[1754938601096,0.43293,119850.0,119840.0,1.11665473]
[1754938601304,0.559098,119850.0,119840.0,0.71106444]
[1754938601496,0.559098,119850.0,119840.0,0.73363444]
[1754938601690,0.559098,119850.0,119840.0,1.11665473]
[1754938601894,0.47566,119850.0,119840.0,0.73363444]
[1754938603104,0.47566,119850.0,119840.0,1.11665473]
[1754938603300,0.5590981,119850.0,119840.0,1.11665473]
[1754938603701,0.47566,119850.0,119840.0,1.11665473]
[1754938604106,0.5590981,119850.0,119840.0,1.11665473]
[1754938604403,0.5590981,119850.0,119840.0,0.73363444]
[1754938605200,0.47566,119850.0,119840.0,0.73363444]
[1754938606205,0.559098,119850.0,119840.0,1.11665473]
[1754938606508,0.47566,119850.0,119840.0,1.11665473]
[1754938608603,0.47566,119850.0,119840.0,0.35061415]
[1754938608809,0.47566,119850.0,119840.0,1.11665473]
[1754938609709,0.5590981,119850.0,119840.0,1.11665473]
[1754938610309,0.5590981,119850.0,119840.0,0.35061415]
[1754938610509,0.5590981,119850.0,119840.0,0.73363444]
[1754938610710,0.5590981,119850.0,119840.0,1.11665473]
[1754938612209,0.5590981,119850.0,119840.0,1.11928473]
[1754938612404,0.5590981,119850.0,119840.0,0.73626444]
[1754938612807,0.9198981,119850.0,119840.0,0.73626444]
[1754938614912,0.9198981,119850.0,119840.0,0.58720536]
[1754938615604,0.9198981,119850.0,119840.0,0.46842536]
[1754938615910,0.9198981,119850.0,119840.0,0.47796536]
[1754938616109,0.9198981,119850.0,119840.0,0.52543536]
[1754938616310,0.9198981,119850.0,119840.0,0.57064536]
[1754938616616,0.9198981,119850.0,119840.0,0.58624536]
[1754938617210,0.9198981,119850.0,119840.0,0.20322507]
[1754938617415,0.9198981,119850.0,119840.0,0.58624536]
[1754938620314,0.9198981,119850.0,119840.0,0.09494507]
[1754938620518,0.9198981,119850.0,119840.0,0.08540507]
[1754938623716,1.0584981,119850.0,119840.0,0.08540507]
[1754938624021,0.9198981,119850.0,119840.0,0.08540507]
[1754938630626,0.9198981,119850.0,119840.0,0.46842536]
[1754938632125,0.9198981,119850.0,119840.0,0.08540507]
[1754938632326,0.9198981,119850.0,119840.0,0.46842536]
[1754938632826,0.8050381,119850.0,119840.0,0.46842536]
[1754938633018,1.7021381,119850.0,119840.0,0.58624536]
[1754938633218,1.5857981,119850.0,119840.0,0.96926565]
[1754938633419,1.6541181,119850.0,119840.0,0.96926565]
[1754938633722,1.6541181,119850.0,119840.0,0.58624536]
[1754938644031,1.6541181,119850.0,119840.0,0.20322507]
[1754938644232,1.6541181,119850.0,119840.0,0.58624536]
[1754938645831,1.6541181,119850.0,119840.0,0.46842536]
[1754938646735,1.6541181,119850.0,119840.0,0.46846519]
[1754938646946,1.6541181,119850.0,119840.0,0.0854449]
[1754938648046,1.6541181,119850.0,119840.0,0.002]
[1754938648244,1.6541181,119850.0,119840.0,0.0854449]
[1754938648744,0.083445,119840.0,119830.0,0.23251098]
[1754938648944,0.94392529,119840.0,119830.0,0.23251098]
[1754938649447,0.0834519,119830.0,119820.0,0.166909]
[1754938649651,1.3409919,119830.0,119820.0,0.166909]
[1754938650247,1.5079088,119830.0,119820.0,0.0834589]
[1754938650550,1.6748266,119830.0,119820.0,0.0834589]
[1754938650747,1.6758266,119830.0,119820.0,0.0834589]
[1754938650949,0.0834589,119820.0,119810.0,0.31608548]
[1754938651144,0.5609189,119820.0,119810.0,0.60907669]
[1754938651450,0.5609189,119820.0,119810.0,0.66950669]
[1754938653553,0.5609189,119820.0,119810.0,0.1670264]
[1754938654146,0.5609189,119820.0,119810.0,0.0835632]
[1754938654344,0.94393919,119820.0,119810.0,0.0835659]
[1754938654549,0.94393919,119820.0,119810.0,0.0001]
[1754938655251,0.95218405,119820.0,119810.0,0.14972961]
[1754938657049,0.95218405,119820.0,119810.0,0.23319551]
[1754938658455,0.95218405,119820.0,119810.0,0.14972961]
[1754938661957,0.95418405,119820.0,119810.0,0.14972961]
[1754938662959,0.95618405,119820.0,119810.0,0.14972961]
[1754938663555,0.95618405,119820.0,119810.0,0.23470961]
[1754938663854,0.95618405,119820.0,119810.0,0.26918961]
[1754938664052,0.57316376,119820.0,119810.0,0.26918961]
[1754938664558,0.71166376,119820.0,119810.0,0.26918961]
[1754938665460,0.71166376,119820.0,119810.0,0.11956]
[1754938665661,1.09468405,119820.0,119810.0,0.11956]
[1754938667558,1.45548405,119820.0,119810.0,0.11956]
[1754938668260,1.45548405,119820.0,119810.0,0.0001]
[1754938670561,1.45548405,119820.0,119810.0,0.04383]
[1754938670763,1.45548405,119820.0,119810.0,0.05771]
[1754938671763,1.45548405,119820.0,119810.0,0.07947]
[1754938671968,1.45548405,119820.0,119810.0,0.10205]
[1754938672467,1.45548405,119820.0,119810.0,0.1855159]
[1754938673265,0.93396376,119820.0,119810.0,0.1146959]
[1754938673564,0.9257189,119820.0,119810.0,0.58372619]
[1754938673770,1.7049989,119820.0,119810.0,0.58372619]
[1754938675873,1.7049989,119820.0,119810.0,0.2007059]
[1754938676274,1.7049989,119820.0,119810.0,0.58372619]
[1754938679181,1.6823289,119820.0,119810.0,0.58372619]
[1754938680582,1.6823289,119820.0,119810.0,0.2007059]
[1754938680779,1.6823289,119820.0,119810.0,0.58372619]
[1754938683580,1.6818889,119820.0,119810.0,0.58372619]
[1754938684080,1.6818889,119820.0,119810.0,0.2007059]
[1754938684776,1.6818889,119820.0,119810.0,0.11724]
[1754938684977,2.06490919,119820.0,119810.0,0.0001]
[1754938685181,1.6818889,119820.0,119810.0,0.0835656]
[1754938685678,1.6818889,119820.0,119810.0,0.1411756]
[1754938686480,1.6818889,119820.0,119810.0,0.05771]
[1754938686684,1.6818889,119820.0,119810.0,0.1411756]
[1754938686880,1.6818889,119820.0,119810.0,0.05771]
[1754938687185,1.6818889,119820.0,119810.0,0.1411756]